fUST/lending_fUST_20250902
["ID","MTS","AMOUNT","RATE_DAILY","PERIOD"]
[382866659,1756758647196,-271.89,0.00013972,2]
[382866661,1756758647208,-480.0,0.00013972,2]
[382866664,1756758647217,-480.0,0.00013972,2]
[382866665,1756758647227,-322.26,0.00013972,2]
[382866668,1756758647237,-307.7,0.00013972,2]
[382866670,1756758647247,-480.0,0.00013972,2]
[382866672,1756758647258,-480.0,0.00013972,2]
[382866673,1756758647269,-480.0,0.00013972,2]
[382866675,1756758647279,-480.0,0.00013972,2]
[382866677,1756758647291,-262.81,0.00013972,2]
[382866680,1756758647301,-480.0,0.00013972,2]
[382866682,1756758647311,-480.0,0.00013972,2]
[382866684,1756758647324,-480.0,0.00013972,2]
[382866686,1756758647335,-539.26,0.00013972,2]
[382866687,1756758647344,-480.0,0.00013972,2]
[382866690,1756758647354,-480.0,0.00013972,2]
[382866691,1756758647363,-1408.27,0.00013972,2]
[382866694,1756758647373,-640.16,0.00013972,2]
[382866695,1756758647384,-480.0,0.00013972,2]
[382866697,1756758647393,-498.6,0.00013972,2]
[382866699,1756758647404,-480.0,0.00013972,2]
[382866701,1756758647417,-480.0,0.00013972,2]
[382866703,1756758647430,-212.32,0.00013972,2]
[382866705,1756758647439,-711.31,0.00013972,2]
[382866707,1756758647450,-1916.97,0.00013972,2]
[382866709,1756758647460,-793.76,0.00013972,2]
[382866711,1756758647470,-198.58,0.00013972,2]
[382866713,1756758647479,-295.44626851,0.00013972,2]
[382866715,1756758647488,-480.0,0.00013972,2]
[382866717,1756758647499,-480.0,0.00013972,2]
[382866719,1756758647509,-480.0,0.00013972,2]
[382866721,1756758647519,-948.12,0.00013972,2]
[382866723,1756758647528,-1310.16,0.00013972,2]
[382866725,1756758647538,-480.0,0.00013972,2]
[382866727,1756758647547,-480.0,0.00013972,2]
[382866729,1756758647557,-480.0,0.00013972,2]
[382866731,1756758647567,-480.0,0.00013972,2]
[382866733,1756758647576,-1136.66,0.00013972,2]
[382866735,1756758647587,-480.13,0.00013972,2]
[382866737,1756758647597,-480.0,0.00013972,2]
[382866739,1756758647606,-480.0,0.00013972,2]
[382866741,1756758647616,-480.0,0.00013972,2]
[382866743,1756758647626,-480.0,0.00013972,2]
[382866745,1756758647635,-275.88,0.00013972,2]
[382866747,1756758647645,-480.0,0.00013972,2]
[382866749,1756758647655,-480.0,0.00013972,2]
[382866751,1756758647663,-480.0,0.00013972,2]
[382866753,1756758647672,-480.0,0.00013972,2]
[382866755,1756758647682,-480.0,0.00013972,2]
[382866757,1756758647691,-480.0,0.00013972,2]
[382866759,1756758647702,-480.0,0.00013972,2]
[382866761,1756758647711,-480.0,0.00013972,2]
[382866763,1756758647721,-480.0,0.00013972,2]
[382866765,1756758647730,-480.0,0.00013972,2]
[382866767,1756758647740,-480.0,0.00013972,2]
[382866769,1756758647749,-260.83,0.00013972,2]
[382866771,1756758647759,-516.57,0.00013972,2]
[382866773,1756758647768,-1425.78,0.00013972,2]
[382866774,1756758647777,-790.25,0.00013972,2]
[382866776,1756758647787,-563.93,0.00013972,2]
[382866778,1756758647796,-482.32,0.00013972,2]
[382866780,1756758647806,-480.0,0.00013972,2]
[382866782,1756758647815,-480.0,0.00013972,2]
[382866785,1756758647825,-480.0,0.00013972,2]
[382866786,1756758647834,-1163.82,0.00013972,2]
[382866788,1756758647843,-480.0,0.00013972,2]
[382866790,1756758647854,-480.0,0.00013972,2]
[382866792,1756758647863,-480.0,0.00013972,2]
[382866794,1756758647873,-480.0,0.00013972,2]
[382866796,1756758647882,-480.0,0.00013972,2]
[382866798,1756758647892,-737.38,0.00013972,2]
[382866800,1756758647902,-480.0,0.00013972,2]
[382866802,1756758647911,-526.51,0.00013972,2]
[382866804,1756758647920,-480.0,0.00013972,2]
[382866806,1756758647929,-480.0,0.00013972,2]
[382866808,1756758647938,-480.0,0.00013972,2]
[382866810,1756758647948,-1046.93,0.00013972,2]
[382866812,1756758647957,-480.0,0.00013972,2]
[382866814,1756758647967,-1827.18,0.00013972,2]
[382866816,1756758647976,-480.0,0.00013972,2]
[382866818,1756758647986,-1338.09,0.00013972,2]
[382866820,1756758647995,-480.0,0.00013972,2]
[382866822,1756758648004,-2071.43,0.00013972,2]
[382866824,1756758648013,-480.0,0.00013972,2]
[382866826,1756758648022,-480.0,0.00013972,2]
[382866828,1756758648031,-480.0,0.00013972,2]
[382866830,1756758648040,-503.21,0.00013972,2]
[382866832,1756758648050,-480.0,0.00013972,2]
[382866834,1756758648059,-480.0,0.00013972,2]
[382866836,1756758648069,-480.0,0.00013972,2]
[382866838,1756758648078,-480.0,0.00013972,2]
[382866840,1756758648087,-407.14,0.00013972,2]
[382866842,1756758648098,-343.1,0.00013972,2]
[382866844,1756758648107,-181.03,0.00013972,2]
[382866846,1756758648116,-480.0,0.00013972,2]
[382866848,1756758648126,-480.0,0.00013972,2]
[382866850,1756758648135,-480.0,0.00013972,2]
[382866851,1756758648144,-247.57,0.00013972,2]
[382866853,1756758648153,-480.0,0.00013972,2]
[382866855,1756758648162,-371.36,0.00013972,2]
[382866857,1756758648172,-503.12,0.00013972,2]
[382866859,1756758648181,-480.0,0.00013972,2]
[382866861,1756758648191,-480.0,0.00013972,2]
[382866863,1756758648199,-225.41,0.00013972,2]
[382866865,1756758648208,-480.0,0.00013972,2]
[382866867,1756758648218,-3273.29,0.00013972,2]
[382866869,1756758648227,-480.0,0.00013972,2]
[382866871,1756758648236,-480.0,0.00013972,2]
[382866873,1756758648245,-160.0,0.00013996,2]
[382866875,1756758648255,-11366.76240249,0.00013996,2]
[382866877,1756758648264,-160.0,0.00013996,2]
[382866879,1756758648274,-160.0,0.00013996,2]
[382866881,1756758648284,-530.14184084,0.00013996,2]
[382866883,1756758648293,-846.10922732,0.00013996,2]
[382866885,1756758648303,-160.0,0.00013996,2]
[382866887,1756758648312,-160.0,0.00013996,2]
[382866889,1756758648321,-232.83393981,0.00013996,2]
[382866891,1756758648331,-417.15472785,0.00013996,2]
[382866893,1756758648340,-316.44906011,0.00013996,2]
[382866895,1756758648350,-160.0,0.00013996,2]
[382866897,1756758648359,-160.0,0.00013996,2]
[382866899,1756758648369,-217.44302069,0.00013996,2]
[382866901,1756758648379,-160.0,0.00013996,2]
[382866904,1756758648389,-580.6718725,0.00014,2]
[382866906,1756758648399,-3372.0,0.00014002,2]
[382866908,1756758648410,-218.12442481,0.00014009,2]
[382866910,1756758648426,-3000.0,0.0001404,2]
[382866912,1756758648443,-975.0,0.00014104,2]
[382866914,1756758648453,-632.0,0.00014104,2]
[382866915,1756758648464,-2153.0,0.00014104,2]
[382866917,1756758648474,-409.0,0.00014104,2]
[382866919,1756758648483,-423.777,0.00014104,2]
[382866921,1756758648493,-168.0,0.00014147,2]
[382866923,1756758648503,-357.00128614,0.00014221,2]
[382866926,1756758648513,-209.11150238,0.00014221,2]
[382866927,1756758648523,-1000.0,0.00014221,2]
[382866929,1756758648533,-1000.0,0.00014221,2]
[382866931,1756758648543,-1000.0,0.00014221,2]
[382866933,1756758648552,-271.13292847,0.00014221,2]
[382866935,1756758648562,-1000.0,0.00014221,2]
[382866937,1756758648571,-1000.0,0.00014221,2]
[382866939,1756758648581,-1000.0,0.00014221,2]
[382866941,1756758648591,-1000.0,0.00014221,2]
[382866943,1756758648600,-1000.0,0.00014221,2]
[382866945,1756758648610,-1000.0,0.00014221,2]
[382866947,1756758648619,-500.0,0.00014221,2]
[382866949,1756758648628,-1000.0,0.00014221,2]
[382866951,1756758648637,-1000.0,0.00014221,2]
[382866953,1756758648645,-151.0,0.00014238,2]
[382866955,1756758648655,-198.0,0.00014246,2]
[382866957,1756758648664,-198.0,0.00014246,2]
[382866959,1756758648673,-198.0,0.00014246,2]
[382866961,1756758648682,-198.0,0.00014246,2]
[382866962,1756758648691,-553.0,0.00014246,2]
[382866964,1756758648701,-151.0,0.00014246,2]
[382866966,1756758648710,-246.04348721,0.00014246,2]
[382866968,1756758648720,-480.0,0.00014246,2]
[382866970,1756758648729,-539.69,0.00014246,2]
[382866972,1756758648739,-480.0,0.00014246,2]
[382866974,1756758648748,-480.0,0.00014246,2]
[382866976,1756758648757,-480.0,0.00014246,2]
[382866978,1756758648766,-481.6,0.00014246,2]
[382866980,1756758648775,-480.0,0.00014246,2]
[382866982,1756758648784,-834.72,0.00014246,2]
[382866984,1756758648793,-799.94,0.00014246,2]
[382866986,1756758648803,-220.56,0.00014246,2]
[382866988,1756758648812,-480.0,0.00014246,2]
[382866990,1756758648821,-480.0,0.00014246,2]
[382866992,1756758648830,-269.27,0.00014246,2]
[382866994,1756758648841,-483.7,0.00014246,2]
[382866996,1756758648851,-480.0,0.00014246,2]
[382866998,1756758648860,-480.0,0.00014246,2]
[382867000,1756758648870,-480.0,0.00014246,2]
[382867002,1756758648879,-480.0,0.00014246,2]
[382867004,1756758648889,-622.52356425,0.00014246,2]
[382867006,1756758648898,-480.0,0.00014246,2]
[382867008,1756758648908,-552.01,0.00014246,2]
[382867010,1756758648917,-480.0,0.00014246,2]
[382867011,1756758648926,-480.0,0.00014246,2]
[382867014,1756758648936,-480.0,0.00014246,2]
[382867015,1756758648946,-480.0,0.00014246,2]
[382867017,1756758648955,-480.0,0.00014246,2]
[382867019,1756758648966,-480.0,0.00014246,2]
[382867022,1756758648976,-261.7,0.00014246,2]
[382867023,1756758648985,-254.8,0.00014246,2]
[382867025,1756758648995,-480.0,0.00014246,2]
[382867027,1756758649004,-480.0,0.00014246,2]
[382867028,1756758649012,-480.0,0.00014246,2]
[382867029,1756758649021,-480.0,0.00014246,2]
[382867030,1756758649031,-480.0,0.00014246,2]
[382867031,1756758649040,-531.2,0.00014246,2]
[382867032,1756758649049,-480.0,0.00014246,2]
[382867033,1756758649058,-526.69,0.00014246,2]
[382867034,1756758649068,-480.0,0.00014246,2]
[382867035,1756758649077,-480.0,0.00014246,2]
[382867036,1756758649086,-480.0,0.00014246,2]
[382867037,1756758649095,-487.24,0.00014246,2]
[382867038,1756758649104,-480.0,0.00014246,2]
[382867039,1756758649113,-553.84759487,0.00014246,2]
[382873180,1756758846058,277.2421867,6.405e-05,2]
[382873182,1756758971335,500.0,0.00012698,2]
[382873489,1756759065706,2541.03589077,0.00012896,2]
[382873502,1756759088498,2541.03589077,0.00012896,2]
[382873503,1756759112950,1140.69603176,0.00012896,2]
[382873504,1756759112973,1400.33985901,0.00012896,2]
[382873505,1756759136550,2541.03589077,0.00012896,2]
[382873506,1756759148609,666.0,0.00012638,2]
[382873507,1756759160578,2541.03589077,0.00012896,2]
[382873508,1756759183655,2541.03589077,0.00012896,2]
[382873509,1756759192535,310.56246868,0.00012638,2]
[382873510,1756759192558,689.43753132,0.00012638,2]
[382873511,1756759206031,2541.03589077,0.00012896,2]
[382873512,1756759229091,2541.03589077,0.00012896,2]
[382873516,1756759430927,4228.50068714,0.00012637,2]
[382873517,1756759430952,10000.01,0.00012637,2]
[382873518,1756759430974,10000.01,0.00012637,2]
[382873519,1756759430997,10000.01,0.00012637,2]
[382873520,1756759431020,10000.01,0.00012637,2]
[382873521,1756759431042,10000.01,0.00012637,2]
[382873522,1756759431064,10000.01,0.00012637,2]
[382873523,1756759431095,51365.07314466,0.00012637,2]
[382873524,1756759435487,500.0,0.0001297,2]
[382873527,1756759654419,500.0,0.0001297,2]
[382873528,1756759662610,500.0,0.0001297,2]
[382873583,1756759832294,-500.0,0.00013101,2]
[382873587,1756759832307,-500.0,0.00013233,2]
[382873590,1756759832316,-500.0,0.00013367,2]
[382873594,1756759832325,-1200.0,0.00013595,2]
[382873598,1756759832334,-300.0,0.00013595,2]
[382873601,1756759832343,-300.0,0.00013595,2]
[382873603,1756759832354,-300.0,0.00013595,2]
[382873605,1756759832363,-1200.0,0.00013595,2]
[382873608,1756759832372,-300.0,0.00013595,2]
[382873611,1756759832382,-300.0,0.00013595,2]
[382873613,1756759832390,-2034.52578764,0.00013598,2]
[382873616,1756759832399,-674.53680026,0.00013598,2]
[382873618,1756759832408,-5089.38476092,0.00013598,2]
[382873639,1756759838195,-335.7,0.00013598,2]
[382873641,1756759838207,-982.6,0.00013598,2]
[382873650,1756759838310,-291.09990644,0.00013598,2]
[382873657,1756759838367,-5211.06178691,0.00013598,2]
[382873867,1756759840362,-7087.72113843,0.00013462,2]
[382873869,1756759840372,-267.25944508,0.00013598,2]
[382873871,1756759840381,-500.0,0.00013697,2]
[382873873,1756759840391,-244.34437383,0.00013697,2]
[382873875,1756759840400,-555.41642704,0.00013697,2]
[382873876,1756759840409,-187.26797644,0.00013697,2]
[382873878,1756759840418,-207.61575646,0.00013697,2]
[382873880,1756759840428,-480.0,0.00013698,2]
[382873882,1756759840438,-480.0,0.00013698,2]
[382873884,1756759840449,-497.17,0.00013698,2]
[382873886,1756759840458,-480.0,0.00013698,2]
[382873888,1756759840467,-480.0,0.00013698,2]
[382873890,1756759840476,-178.10919,0.00013698,2]
[382873892,1756759840485,-480.0,0.00013698,2]
[382873894,1756759840494,-177.68653425,0.00013698,2]
[382873896,1756759840504,-480.0,0.00013698,2]
[382873898,1756759840512,-480.0,0.00013698,2]
[382873900,1756759840522,-480.0,0.00013698,2]
[382873902,1756759840531,-480.0,0.00013698,2]
[382873904,1756759840541,-480.0,0.00013698,2]
[382873906,1756759840550,-499.22,0.00013698,2]
[382873908,1756759840559,-480.0,0.00013698,2]
[382873910,1756759840568,-480.0,0.00013698,2]
[382873912,1756759840577,-480.0,0.00013698,2]
[382873914,1756759840586,-480.0,0.00013698,2]
[382873916,1756759840596,-480.0,0.00013698,2]
[382873918,1756759840605,-480.0,0.00013698,2]
[382873920,1756759840614,-480.0,0.00013698,2]
[382873922,1756759840623,-500.0,0.00013698,2]
[382873923,1756759840632,-500.0,0.00013698,2]
[382873925,1756759840641,-480.0,0.00013698,2]
[382873927,1756759840650,-480.0,0.00013698,2]
[382873929,1756759840659,-480.0,0.00013698,2]
[382873931,1756759840668,-480.0,0.00013698,2]
[382873934,1756759840678,-469.80261877,0.00013698,2]
[382873936,1756759840687,-480.0,0.00013698,2]
[382873938,1756759840699,-480.0,0.00013698,2]
[382873940,1756759840708,-480.0,0.00013698,2]
[382873941,1756759840717,-598.79,0.00013698,2]
[382873944,1756759840727,-480.0,0.00013698,2]
[382873946,1756759840736,-279.98960685,0.00013698,2]
[382873947,1756759840745,-480.0,0.00013698,2]
[382873949,1756759840754,-480.0,0.00013698,2]
[382873951,1756759840764,-480.0,0.00013698,2]
[382873953,1756759840774,-480.0,0.00013698,2]
[382873955,1756759840783,-480.0,0.00013698,2]
[382873957,1756759840792,-480.0,0.00013698,2]
[382873959,1756759840802,-480.0,0.00013698,2]
[382873961,1756759840811,-480.0,0.00013698,2]
[382873963,1756759840820,-480.0,0.00013698,2]
[382873965,1756759840830,-511.78028173,0.00013698,2]
[382873967,1756759840839,-480.0,0.00013698,2]
[382873969,1756759840849,-480.0,0.00013698,2]
[382873971,1756759840859,-480.0,0.00013698,2]
[382873973,1756759840868,-480.0,0.00013698,2]
[382873975,1756759840877,-480.0,0.00013698,2]
[382873977,1756759840886,-296.88828713,0.00013698,2]
[382873979,1756759840895,-480.0,0.00013698,2]
[382873981,1756759840904,-480.0,0.00013698,2]
[382873983,1756759840913,-480.0,0.00013698,2]
[382873985,1756759840922,-480.0,0.00013698,2]
[382873987,1756759840931,-480.0,0.00013698,2]
[382873989,1756759840941,-480.0,0.00013698,2]
[382873991,1756759840950,-480.0,0.00013698,2]
[382873993,1756759840959,-326.3682361,0.00013698,2]
[382873995,1756759840969,-480.0,0.00013698,2]
[382873997,1756759840979,-480.0,0.00013698,2]
[382873999,1756759840989,-480.0,0.00013698,2]
[382874001,1756759840998,-480.0,0.00013698,2]
[382874002,1756759841008,-599.22,0.00013698,2]
[382874005,1756759841019,-480.0,0.00013698,2]
[382874006,1756759841028,-480.0,0.00013698,2]
[382874008,1756759841038,-480.0,0.00013698,2]
[382874010,1756759841048,-494.38,0.00013698,2]
[382874012,1756759841059,-480.0,0.00013698,2]
[382874014,1756759841075,-480.0,0.00013698,2]
[382874016,1756759841089,-491.77,0.00013698,2]
[382874018,1756759841100,-518.12,0.00013698,2]
[382874020,1756759841110,-494.83,0.00013698,2]
[382874022,1756759841120,-480.0,0.00013698,2]
[382874024,1756759841129,-480.0,0.00013698,2]
[382874026,1756759841139,-480.0,0.00013698,2]
[382874028,1756759841149,-480.0,0.00013698,2]
[382874030,1756759841159,-480.0,0.00013698,2]
[382874032,1756759841168,-480.0,0.00013698,2]
[382874034,1756759841178,-480.0,0.00013698,2]
[382874036,1756759841188,-480.0,0.00013698,2]
[382874038,1756759841200,-480.0,0.00013698,2]
[382874040,1756759841210,-480.0,0.00013698,2]
[382874042,1756759841220,-480.0,0.00013698,2]
[382874044,1756759841229,-480.0,0.00013698,2]
[382874046,1756759841239,-480.0,0.00013698,2]
[382874048,1756759841248,-480.0,0.00013698,2]
[382874050,1756759841258,-480.0,0.00013698,2]
[382874052,1756759841267,-480.0,0.00013698,2]
[382874054,1756759841276,-480.0,0.00013698,2]
[382874056,1756759841286,-480.0,0.00013698,2]
[382874059,1756759841296,-480.0,0.00013698,2]
[382874061,1756759841306,-480.0,0.00013698,2]
[382874063,1756759841315,-480.0,0.00013698,2]
[382874065,1756759841324,-480.0,0.00013698,2]
[382874067,1756759841333,-480.0,0.00013698,2]
[382874069,1756759841343,-480.0,0.00013698,2]
[382874070,1756759841352,-480.0,0.00013698,2]
[382874072,1756759841361,-480.0,0.00013698,2]
[382874074,1756759841370,-480.0,0.00013698,2]
[382874076,1756759841380,-480.0,0.00013698,2]
[382874078,1756759841389,-480.0,0.00013698,2]
[382874080,1756759841398,-480.0,0.00013698,2]
[382874082,1756759841407,-480.0,0.00013698,2]
[382874084,1756759841417,-569.68838481,0.00013698,2]
[382874086,1756759841426,-383.95059872,0.00013698,2]
[382874088,1756759841435,-480.0,0.00013698,2]
[382874090,1756759841448,-480.0,0.00013698,2]
[382874093,1756759841458,-480.0,0.00013698,2]
[382874095,1756759841468,-398.33755648,0.00013698,2]
[382874097,1756759841478,-480.0,0.00013698,2]
[382874098,1756759841488,-480.0,0.00013698,2]
[382874101,1756759841497,-480.0,0.00013698,2]
[382874103,1756759841507,-480.0,0.00013698,2]
[382874104,1756759841517,-641.52,0.00013698,2]
[382874107,1756759841527,-480.0,0.00013698,2]
[382874109,1756759841536,-480.0,0.00013698,2]
[382874110,1756759841546,-158.13550531,0.00013698,2]
[382874112,1756759841555,-480.0,0.00013698,2]
[382874115,1756759841565,-480.0,0.00013698,2]
[382874116,1756759841575,-480.0,0.00013698,2]
[382874118,1756759841587,-480.0,0.00013698,2]
[382874121,1756759841597,-480.0,0.00013698,2]
[382874123,1756759841607,-480.0,0.00013698,2]
[382874124,1756759841617,-480.0,0.00013698,2]
[382874127,1756759841627,-480.0,0.00013698,2]
[382874129,1756759841636,-480.0,0.00013698,2]
[382874130,1756759841646,-480.0,0.00013698,2]
[382874133,1756759841656,-480.0,0.00013698,2]
[382874134,1756759841666,-480.0,0.00013698,2]
[382874136,1756759841675,-480.0,0.00013698,2]
[382874138,1756759841686,-501.23,0.00013698,2]
[382874140,1756759841699,-480.0,0.00013698,2]
[382874142,1756759841709,-570.65,0.00013698,2]
[382874144,1756759841718,-480.0,0.00013698,2]
[382874146,1756759841728,-480.0,0.00013698,2]
[382874148,1756759841738,-480.0,0.00013698,2]
[382874150,1756759841748,-480.0,0.00013698,2]
[382874152,1756759841757,-480.0,0.00013698,2]
[382874154,1756759841768,-480.0,0.00013698,2]
[382874156,1756759841777,-591.35,0.00013698,2]
[382874158,1756759841787,-480.0,0.00013698,2]
[382874160,1756759841797,-480.0,0.00013698,2]
[382874162,1756759841806,-480.0,0.00013698,2]
[382874164,1756759841816,-480.0,0.00013698,2]
[382874166,1756759841826,-480.0,0.00013698,2]
[382874168,1756759841836,-480.0,0.00013698,2]
[382874170,1756759841845,-480.0,0.00013698,2]
[382874172,1756759841854,-480.0,0.00013698,2]
[382874174,1756759841864,-480.0,0.00013698,2]
[382874176,1756759841873,-480.0,0.00013698,2]
[382874178,1756759841883,-480.0,0.00013698,2]
[382874180,1756759841892,-480.0,0.00013698,2]
[382874182,1756759841902,-480.0,0.00013698,2]
[382874184,1756759841911,-480.0,0.00013698,2]
[382874186,1756759841920,-683.33,0.00013698,2]
[382874188,1756759841930,-480.0,0.00013698,2]
[382874190,1756759841941,-480.0,0.00013698,2]
[382874192,1756759841951,-480.0,0.00013698,2]
[382874194,1756759841960,-480.0,0.00013698,2]
[382874196,1756759841969,-480.0,0.00013698,2]
[382874198,1756759841978,-480.0,0.00013698,2]
[382874200,1756759841987,-480.0,0.00013698,2]
[382874202,1756759841998,-1251.62,0.00013698,2]
[382874204,1756759842007,-480.0,0.00013698,2]
[382874206,1756759842017,-480.0,0.00013698,2]
[382874208,1756759842026,-478.68,0.00013698,2]
[382874210,1756759842036,-480.0,0.00013698,2]
[382874212,1756759842045,-480.0,0.00013698,2]
[382874214,1756759842054,-480.0,0.00013698,2]
[382874216,1756759842063,-480.0,0.00013698,2]
[382874218,1756759842071,-480.0,0.00013698,2]
[382874220,1756759842083,-480.0,0.00013698,2]
[382874221,1756759842090,-480.0,0.00013698,2]
[382874223,1756759842098,-1329.01,0.00013698,2]
[382874226,1756759842107,-480.0,0.00013698,2]
[382874228,1756759842117,-494.32,0.00013698,2]
[382874230,1756759842125,-480.0,0.00013698,2]
[382874232,1756759842134,-492.87,0.00013698,2]
[382874234,1756759842142,-480.0,0.00013698,2]
[382874236,1756759842150,-480.0,0.00013698,2]
[382874237,1756759842159,-322.95973612,0.00013698,2]
[382874388,1756759843570,-157.04026388,0.00013698,2]
[382874389,1756759843579,-480.0,0.00013698,2]
[382874390,1756759843588,-480.0,0.00013698,2]
[382874391,1756759843597,-480.0,0.00013698,2]
[382874392,1756759843606,-480.0,0.00013698,2]
[382874393,1756759843615,-480.0,0.00013698,2]
[382874394,1756759843624,-480.0,0.00013698,2]
[382874395,1756759843634,-480.0,0.00013698,2]
[382874396,1756759843643,-791.84,0.00013698,2]
[382874397,1756759843652,-1170.54,0.00013698,2]
[382874398,1756759843661,-480.0,0.00013698,2]
[382874399,1756759843669,-480.0,0.00013698,2]
[382874400,1756759843678,-3284.56,0.00013698,2]
[382874401,1756759843687,-480.0,0.00013698,2]
[382874402,1756759843698,-480.0,0.00013698,2]
[382874404,1756759843708,-480.0,0.00013698,2]
[382874406,1756759843721,-665.16,0.00013698,2]
[382874408,1756759843730,-480.0,0.00013698,2]
[382874410,1756759843740,-480.0,0.00013698,2]
[382874412,1756759843749,-480.0,0.00013698,2]
[382874414,1756759843758,-869.11,0.00013698,2]
[382874416,1756759843768,-480.0,0.00013698,2]
[382874418,1756759843777,-480.0,0.00013698,2]
[382874420,1756759843787,-480.0,0.00013698,2]
[382874422,1756759843796,-480.0,0.00013698,2]
[382874424,1756759843806,-480.0,0.00013698,2]
[382874426,1756759843816,-480.0,0.00013698,2]
[382874428,1756759843825,-480.0,0.00013698,2]
[382874430,1756759843835,-480.0,0.00013698,2]
[382874432,1756759843845,-1854.42,0.00013698,2]
[382874434,1756759843854,-480.0,0.00013698,2]
[382874436,1756759843864,-480.0,0.00013698,2]
[382874438,1756759843875,-480.0,0.00013698,2]
[382874440,1756759843885,-480.0,0.00013698,2]
[382874442,1756759843894,-351.18,0.00013698,2]
[382874444,1756759843904,-773.47,0.00013698,2]
[382874446,1756759843913,-480.0,0.00013698,2]
[382874448,1756759843923,-481.32,0.00013698,2]
[382874450,1756759843933,-480.0,0.00013698,2]
[382874452,1756759843943,-480.0,0.00013698,2]
[382874454,1756759843952,-480.0,0.00013698,2]
[382874456,1756759843962,-480.0,0.00013698,2]
[382874458,1756759843971,-480.0,0.00013698,2]
[382874460,1756759843980,-480.0,0.00013698,2]
[382874462,1756759843989,-233.9364442,0.00013698,2]
[382874464,1756759843998,-986.04,0.00013698,2]
[382874466,1756759844008,-480.0,0.00013698,2]
[382874468,1756759844017,-304.40385016,0.00013698,2]
[382874470,1756759844027,-1990.48,0.00013698,2]
[382874472,1756759844036,-480.0,0.00013698,2]
[382874474,1756759844046,-480.0,0.00013698,2]
[382874476,1756759844055,-480.0,0.00013698,2]
[382874478,1756759844064,-480.0,0.00013698,2]
[382874480,1756759844076,-480.0,0.00013698,2]
[382874482,1756759844086,-480.0,0.00013698,2]
[382874484,1756759844095,-480.0,0.00013698,2]
[382874486,1756759844105,-341.689348,0.00013698,2]
[382874488,1756759844114,-265.67,0.00013698,2]
[382874490,1756759844125,-480.0,0.00013698,2]
[382874492,1756759844134,-480.0,0.00013698,2]
[382874493,1756759844144,-217.45,0.00013698,2]
[382874495,1756759844154,-480.0,0.00013698,2]
[382874498,1756759844165,-312.18,0.00013698,2]
[382874499,1756759844174,-480.0,0.00013698,2]
[382874501,1756759844184,-480.0,0.00013698,2]
[382874503,1756759844194,-523.8,0.00013698,2]
[382874505,1756759844204,-625.0,0.00013698,2]
[382874507,1756759844214,-480.0,0.00013698,2]
[382874509,1756759844225,-1181.39,0.00013698,2]
[382874511,1756759844235,-481.32029746,0.00013698,2]
[382874513,1756759844244,-480.0,0.00013698,2]